Cogmind - Beta 17.1 @@@ ROGUE MODE // 2026.09.09 @ 17:44:06 Player: 4R-ZE3 Result: Destroyed by 15-68N(R) with Subdweller Beam Cannon Performance ------------- Evolutions (0) 0 Regions Visited (2) 400 Robots Destroyed (28) 140 Value Destroyed (824) 824 Prototype IDs (0) 0 Alien Tech Used (0) 0 Bonus (0) 0 TOTAL SCORE: 1364 Bonus ------- None Cogmind --------- Core Integrity 0/250 Matter 300/300 Energy 160/170 System Corruption 0% Temperature Warm (142) Movement Treading (160) Location -10/Subcaves Parts ------- > --- POWER (1) -------- Makeshift Power Source > --- PROPULSION (2) --- Spiked Treads Spiked Treads > --- UTILITY (2) ------ Small Storage Unit Makeshift Light Armor Plating > --- WEAPON (2) ------- Subdweller Beam Cannon Subdweller Beam Cannon > --- INVENTORY (8) ---- Compact Wheel Compact Wheel Heat Sink Subdweller Laser Subdweller Beam Cannon Subdweller Machine Gun Subdweller Machine Gun Subdweller Shrapnel Launcher Peak State ------------ > --- POWER ------------ Makeshift Power Source > --- PROPULSION ------- Spiked Treads Spiked Treads > --- UTILITY ---------- Small Storage Unit Makeshift Light Armor Plating > --- WEAPON ----------- Subdweller Laser Subdweller Beam Cannon > --- INVENTORY -------- Compact Wheel Compact Wheel Heat Sink Particle Gun Subdweller Machine Gun Subdweller Machine Gun Subdweller Shrapnel Launcher [Rating: 18] Favorites ----------- Power Ion Engine Engine Ion Engine Propulsion Light Treads Treads Light Treads Wheel Subdweller Monowheel Utility Small Storage Unit Device Structural Scanner Storage Small Storage Unit Processor Targeting Computer Protection Makeshift Light Armor Plating Weapon Assault Rifle Energy Gun Small Laser Energy Cannon Subdweller Beam Cannon Ballistic Gun Assault Rifle Ballistic Cannon Light Cannon Launcher Grenade Launcher Build | -11 -10 -10 ------- Run | Yrd Mat Sub Slots Evolved . | . . . Power . | . . . Propulsion . | . . . Utility . | . . . Weapon . | . . . Parts Attached 30 | 6 9 15 Power 4 | 1 2 1 Engine 4 | 1 2 1 Core . | . . . Reactor . | . . . Propulsion 8 | 2 2 4 Treads 7 | 2 2 3 Leg . | . . . Wheel 1 | . . 1 Hover . | . . . Flight . | . . . Utility 4 | 1 2 1 Device 1 | . 1 . Storage 1 | 1 . . Processor 1 | . 1 . Hackware . | . . . Protection 1 | . . 1 Artifact . | . . . Weapon 14 | 2 3 9 Energy Gun 3 | 1 . 2 Energy Cannon 3 | . . 3 Ballistic Gun 5 | 1 2 2 Ballistic Cannon 1 | . . 1 Launcher 2 | . 1 1 Special Weapon . | . . . Impact Weapon . | . . . Slashing Weapon . | . . . Piercing Weapon . | . . . Special Melee Weapon . | . . . Unidentified Prototypes . | . . . Parts Lost 8 | . 1 7 Power 1 | . . 1 Propulsion 3 | . 1 2 Utility 1 | . . 1 Weapon 3 | . . 3 Highest Loss Streak 3 | . 1 3 To Critical Strikes . | . . . Average Backups 7 | 1 6 7 Power . | . . . Propulsion 2 | 1 3 2 Utility . | . . 1 Weapon 3 | . 2 3 Tool/Special . | . . . Unused Backups 8 | . . 8 Power . | . . . Propulsion 3 | . . 3 Utility 1 | . . 1 Weapon 4 | . . 4 Tool/Special . | . . . Average Slot Usage (%) 89 | . 98 83 Engine 7 | . 14 2 Treads 25 | . 27 24 Wheel 1 | . . 3 Device 4 | . 4 4 Storage 14 | . 14 14 Processor 3 | . 7 . Protection 2 | . . 4 Energy Gun 2 | . 3 1 Energy Cannon 7 | . . 12 Ballistic Gun 15 | . 24 9 Ballistic Cannon 2 | . . 4 Peak Build Rating 18 | 6 7 18 Average Rating 8 | 4 6 10 On Entrance 4 | . 6 7 Avg Prop Armor Cover (%) 16 | . . 16 Naked Turns . | . . . Heaviest Build 29 | 12 15 29 Greatest Support 40 | 40 40 40 Greatest Overweight (x) 1 | . . 1 Average Overweight (x) . | . . . Largest Inventory Capacity 8 | 8 8 8 Average Capacity 7 | 6 8 8 Most Carried 8 | 3 8 8 Average Carried 7 | 2 6 7 Final Capacity 8 | 8 8 8 Final Carried 8 | 3 8 8 Class Distribution -------------------- 85% | Mutant 14% | Derelict-Mutant Dominant Class ---------------- Mutant | -10/Materials Mutant | -10/Subcaves Resources | -11 -10 -10 ----------- Run | Yrd Mat Sub Matter Collected 990 | 199 387 404 Remotely . | . . . Salvage Created 817 | . 538 279 Parts 52 | . 36 16 Haulers Intercepted 2 | . 2 . Recyclers Shooed . | . . . Parts Field Recycled . | . . . Retrieved Matter . | . . . Parts Self-Destructed 11 | . . 11 Prevented . | . . . Parts Restored . | . . . Kills | -11 -10 -10 ------- Run | Yrd Mat Sub Combat Hostiles Destroyed 25 | . 13 12 Guns 19 | . 13 6 Cannons 4 | . . 4 AOE 2 | . . 2 Classes Destroyed 5 | . 4 1 Hauler 2 | . 2 . Watcher 1 | . 1 . Swarmer 5 | . 3 2 Grunt 12 | . 10 2 Subdweller 8 | . . 8 Best Kill Streak 4 | . 4 4 Combat Bots Only 4 | . 4 4 Max Kills in Single Turn 1 | . 1 1 Gunslinging . | . . . Exploded 1 | . . 1 Melee . | . . . Uniques/NPCs Destroyed . | . . . Combat | -11 -10 -10 -------- Run | Yrd Mat Sub Hostile Shots Fired 154 | . 93 61 Missed 33 | . 19 14 Hits 121 | . 74 47 Projectile 121 | . 74 47 AOE 2 | . . 2 Critical Strikes 2 | . 1 1 Damage Taken 2070 | . 843 1227 Core 269 | . 107 162 Absorbed by Shields . | . . . Core Remaining (%) 100 | 100 . . Volleys Fired 121 | . 62 59 Largest 2 | . 2 2 Hottest 160 | . 60 160 Shots Fired 217 | . 123 94 Gun 150 | . 122 28 Cannon 59 | . . 59 Launcher 8 | . 1 7 Special . | . . . Kinetic 140 | . 99 41 Thermal 73 | . 23 50 Explosive 4 | . 1 3 Electromagnetic . | . . . Robot Hit Streak 18 | . 17 18 Robot Miss Streak 7 | . 7 3 Penetration Max . | . . . Secondary Targets 1 | . 1 . Max Gunslinging Chain 1 | . 1 . Shots Hit Robots 143 | . 82 61 Core Hits 47 | . 28 19 Critical Kills 1 | . . 1 Critical Parts Destroyed . | . . . Critical Strikes 2 | . . 2 Destroy 1 | . . 1 Blast 1 | . . 1 Melee Attacks . | . . . Impact . | . . . Slashing . | . . . Piercing . | . . . Sneak Attacks . | . . . Combat Hostiles . | . . . Follow-up Attacks . | . . . Damage Inflicted 2793 | . 1030 1763 Guns 1479 | . 1030 449 Cannons 881 | . . 881 Explosions 433 | . . 433 Melee . | . . . Ramming . | . . . Kinetic 1699 | . 806 893 Thermal 1024 | . 224 800 Explosive 70 | . . 70 Electromagnetic . | . . . Impact . | . . . Slashing . | . . . Piercing . | . . . Highest Corruption . | . . . Average Corruption . | . . . Corruption Purged . | . . . Corruption Blocked . | . . . Overload Shots . | . . . Overflow Damage . | . . . Projectiles . | . . . Explosions . | . . . Melee . | . . . Knockbacks 3 | . . 3 Impact . | . . . Kinetic 3 | . . 3 Secondary . | . . . Self-Inflicted Damage 197 | . 20 177 Shots 4 | . 1 3 Rammed . | . . . Targets Rammed . | . . . Kicked . | . . . Crushed . | . . . Highest Temperature 269 | . 70 269 Average Temperature 36 | . 26 76 Received Heat Transfer 833 | . 354 479 Siege Activations . | . . . Martial Activations . | . . . Shielding Activations . | . . . Robots Disrupted . | . . . Combat Hostiles . | . . . Robots Corrupted . | . . . Combat Hostiles . | . . . Parts Fried . | . . . Impact Corruptions . | . . . Robots Melted . | . . . Combat Hostiles . | . . . Parts Melted 1 | . 1 . Heat Transferred 1647 | . 500 1147 Parts Sabotaged . | . . . Parts Stolen . | . . . Parts Stripped . | . . . Power Chain Reactions . | . . . Alert | -11 -10 -10 ------- Run | Yrd Mat Sub Maximum Alert Level . | . . . Low Security (%) 100 | 100 100 . Level 1 . | . . . Level 2 . | . . . Level 3 . | . . . Level 4 . | . . . Level 5 . | . . . High Security . | . . . Max Security . | . . . Peak Influence 157 | . 157 . Initial . | . . . Average 46 | . 50 . Influence Increases 546 | . 446 100 Destroy 0b10 Robot/C 340 | . 260 80 Destroy 0b10 Robot/NC 15 | . 15 . Destroy Leader 76 | . 56 20 Successful Hack 5 | . 5 . Select Force Hacks 60 | . 60 . Destroy Structure 5 | . 5 . Lose Combat Pursuer 45 | . 45 . Influence Decreases 546 | . 419 127 Entered New Map 14 | . . 14 Time Decay 403 | . 310 93 Lost Part 30 | . 10 20 Purge Threat 99 | . 99 . Squads Dispatched 3 | . 3 . Investigation 2 | . 2 . Extermination . | . . . Reinforcement 1 | . 1 . Assault . | . . . Garrison . | . . . Intercept . | . . . Searches Triggered . | . . . Construction Impeded . | . . . Haulers Reinforced . | . . . Active Scanning Responses . | . . . Cargo Convoy Interrupts . | . . . Stealth | -11 -10 -10 --------- Run | Yrd Mat Sub Distress Signals 3 | . 3 . Communications Jammed . | . . . Distress Signals . | . . . Times Spotted 37 | . 23 14 Peak Tracking Total 4 | . 4 4 Tactical Retreats 3 | . 3 . Traps | -11 -10 -10 ------- Run | Yrd Mat Sub Traps Triggered 2 | . 1 1 Indirectly . | . . . Trap Hack Attempts . | . . . Triggered . | . . . Disarmed . | . . . Reprogrammed . | . . . Reused . | . . . Traps Extracted . | . . . Installed . | . . . Triggered . | . . . Machines | -11 -10 -10 ---------- Run | Yrd Mat Sub Machines Disabled . | . . . Max in Single Turn . | . . . Machines Repaired . | . . . Machines Dismantled . | . . . Machines Sabotaged . | . . . Overloaded Fab Kills . | . . . Hacking | -11 -10 -10 --------- Run | Yrd Mat Sub Machines Accessed 7 | . 6 1 Terminals 4 | . 4 . Fabricators . | . . . Repair Stations . | . . . Recycling Units 2 | . 2 . Scanalyzers . | . . . Garrison Access . | . . . Total Hacks 16 | . 12 4 Successful 12 | . 8 4 Failed 4 | . 4 . Catastrophic . | . . . Database Lockouts . | . . . Manual 10 | . 10 . Terminals 10 | . 10 . Fabricators . | . . . Repair Stations . | . . . Recycling Units 2 | . 2 . Scanalyzers . | . . . Garrison Access . | . . . Terminal Hacks 9 | . 5 4 Record 4 | . . 4 Robot Analysis 2 | . 2 . Unreport Threat 1 | . 1 . Zone Layout 2 | . 2 . Fabricator Hacks . | . . . Repair Station Hacks . | . . . Recycling Unit Hacks . | . . . Scanalyzer . | . . . Garrison Access Hacks . | . . . Unauthorized Hacks 3 | . 3 . Terminals 1 | . 1 . Botnet 1 | . 1 . Fabricators . | . . . Repair Stations . | . . . Recycling Units 2 | . 2 . Tunnel 2 | . 2 . Scanalyzers . | . . . Garrison Access . | . . . Data Cores Recovered . | . . . Used . | . . . Hacking Detections 3 | . 3 . Full Trace Events . | . . . Feedback Events . | . . . Feedback Blocked . | . . . Robot Schematics Acquired . | . . . Robots Built . | . . . Authchips . | . . . Time . | . . . Total Robot Build Rating . | . . . Part Schematics Acquired . | . . . Parts Built . | . . . Authchips . | . . . Time . | . . . Total Part Build Rating . | . . . Part Studies Acquired . | . . . Parts Repaired . | . . . Time . | . . . Parts Recycled . | . . . Recycled Matter . | . . . Retrieved Matter . | . . . Retrieved Components . | . . . Parts Scanalyzed . | . . . Part Schematics Acquired . | . . . Parts Damaged . | . . . Bothacking | -11 -10 -10 ------------ Run | Yrd Mat Sub Used RIF Installer . | . . . Robots Hacked . | . . . Non-combat . | . . . Combat . | . . . Robot Hacks Applied . | . . . Relay Couplers Released . | . . . Fabnet Peak Effective % . | . . . Robots Rewired . | . . . Allies Hacked . | . . . Hacks Repelled . | . . . Allies | -11 -10 -10 -------- Run | Yrd Mat Sub Total Allies . | . . . Largest Group . | . . . Highest-Rated Group . | . . . Highest-Rated Ally . | . . . Total Orders . | . . . Ally Attacks . | . . . Total Damage . | . . . Kills . | . . . Allies Corrupted . | . . . Allies Melted . | . . . Intel | -11 -10 -10 ------- Run | Yrd Mat Sub Active Infowar (turns) 847 | . 340 507 Structural 847 | . 340 507 Robot Analysis Total 2 | . 2 . Derelict Logs Recovered 1 | . . 1 Drone Launches . | . . . Drone Recoveries . | . . . Exploration | -11 -10 -10 ------------- Run | Yrd Mat Sub Turns Passed 2520 | 85 991 1444 Spaces Moved 1337 | 45 472 820 Core 2 | 2 . . Treads 1073 | 43 472 558 Legs . | . . . Wheels 262 | . . 262 Hover . | . . . Flight . | . . . Fastest Speed 50 | 50 160 110 Average Speed 150 | 155 160 144 Slowest Speed 260 | 160 160 260 Overloaded Moves . | . . . Propulsion Burnouts . | . . . Robots Hopped . | . . . Potential Cave-ins . | . . . Cave-ins Triggered . | . . . Exploration Rate (%) 44 | 4 74 55 Regions Visited 2 Branch Regions 1 Pre-discovered Areas 3 | . 2 1 Known Exits Taken . | . . . Unknown Exits Taken 2 | 1 1 . Scrap Searched 8 | . . 8 Spaces Dug 2 | . . 2 Terrain Destroyed 57 | . 5 52 Melee . | . . . Projectile 6 | . . 6 AOE 51 | . 5 46 Terrain Rammed . | . . . Walls Destroyed . | . . . Machines Disabled . | . . . Actions | -11 -10 -10 --------- Run | Yrd Mat Sub Total 1630 | 57 591 982 Wait 102 | 4 32 66 Move 1335 | 44 471 820 Hop . | . . . Pick Up 22 | 3 10 9 Fast Attach 15 | 6 3 6 Attach 5 | . 2 3 Detach . | . . . Swap 15 | . 5 10 Drop 15 | . 6 9 Fire 121 | . 62 59 Melee . | . . . Ram . | . . . Kick . | . . . Crush . | . . . Escape Stasis . | . . . Rewire . | . . . Trap . | . . . Miscellaneous . | . . . Route ------- -11/Scrapyard -10/Materials (discovered 4 exits: [*Mat x2] / [*Min] / *Sub) -10/Subcaves (discovered 1 exit: [Rec]) History --------- Turn | Location | Event 26 | -11/Scrapyard | Discovered new exit (range 14) 86 | -11/Scrapyard | Entered Materials 104 | -10/Materials | Discovered new exit (range 15) 314 | -10/Materials | Build established: Mutant 376 | -10/Materials | Discovered new exit (range 15) 853 | -10/Materials | Discovered new exit (range 10) 1035 | -10/Materials | Discovered new exit (range 12) 1077 | -10/Materials | Entered Subcaves 1077 | -10/Subcaves | Discovered new exit (range 15) 1078 | -10/Subcaves | Approached by a straggling Scientist 1098 | -10/Subcaves | Shifting Twisted Machinery released Sub. Beam Cannon 1171 | -10/Subcaves | Learned location of Zion (-6) 1171 | -10/Subcaves | Met a Zionite searching for "candidates" 1306 | -10/Subcaves | Core integrity fell below 50% 1409 | -10/Subcaves | Visited Clippyterm 1414 | -10/Subcaves | Learned Factory trap positions 1619 | -10/Subcaves | Lost 3 parts (1n1u1w) 1934 | -10/Subcaves | A swath of the cavern ceiling suddenly collapsed 2145 | -10/Subcaves | Core integrity fell below 20% 2178 | -10/Subcaves | A swath of the cavern ceiling suddenly collapsed 2193 | -10/Subcaves | Learned Materials stockpile data 2402 | -10/Subcaves | Disturbed a concealed Subdweller 2435 | -10/Subcaves | Build established: Derelict-Mutant 2521 | -10/Subcaves | Destroyed by 15-68N(R) with Subdweller Beam Cannon Last Messages --------------- 02439_ Critical hit (Impale). 02442_ Acquired Mak. Power Source. 02444_ Acquired 10 matter. 02449_ Acquired Sub. Laser. 02452_ Searching scrap... 02452_ Found Mak. Flight Unit. 02452_ Found Sub. Beam Cannon. 02452_ Found 43 Matter. 02453_ Acquired 10 matter. 02455_ Searching scrap... 02455_ Found Sub. Shrapnel Launcher. 02455_ Found 50 Matter. 02460_ Acquired Sub. Beam Cannon. 02464_ Searching scrap... 02464_ Found Sub. Power Source. 02464_ Found Sub. Beam Cannon. 02464_ Found 41 Matter. 02469_ Dropped Particle Gun. 02469_ Acquired Sub. Beam Cannon. 02475_ Acquired 10 matter. Map ----- +----------------------------------------------------+ | ?????????????????????????????????????????????????? | | ?????????????????????????????????????????????????? | | ?????????????????????????????????????????????????? | | ?????????????????????????????????????????????????? | | ?????????????????????????????????????????????????? | | ?????????????????????????????????????????????????? | | ?????????????????????????????????????????????????? | | ?????????????????????????????????????????????????? | | ?????????????????????????????????????????????????? | | ?????????????????????????????????????????????????? | | ?????????????????????????????????????????????????? | | ?????????????????????????????????????????????????? | | ?????????????????????????????????????????????????? | | ?????????????????????????????????????????????????? | | ???????????????###???????????????????????????????? | | ???????????????# ##??????????????????????????????? | | ???######??????# ###????????????????????????????? | | ??##%* "#??????# ##???????????????????????????? | | ??# [ ######## ###???????##?"??????????????? | | ??# =% # """"# ##???? #""??????????????? | | ??# %] " ""#" ## ##??# """"?????????????? | | ??# ## #?? ! " #?????????????? | | ??#% ### #?#RR "#?????????????? | | ??#& ### ## ""#?????????????? | | ??#" ## """ ???????????????? | | ??#""" & @ ##""" ???????????????? | | ??#"&" #????????????????????? | | ??# "" & # #????????????????????? | | ??#"" & # # #????????????????????? | | ??#"" # ## #????????????????????? | | ??## " ### #????????????????????? | | ???###### # #### # ### #????????????????????? | | ????????######??## # % # #????????????????????? | | ?????????????????#### ## #????????????????????? | | ????????????????????# " #????????????????????? | | ????????????????????#""" ##???????????????????? | | ???????????????????##""""" ## ####?????????????? | | ????????????????#### """" #????????????? | | ???????????????##"" """ ##????????????? | | ???????????????#"""" # # # ###????????????? | | ???????????????# " " ##### #????????????? | | ???????????????## ## ####?# #?????????????? | | ???????????????????## #???? #?????????????? | | ????????????????????# ##??? #?????????????? | | ???????????????????## #?? ##????????????? | | ??????????????????## #?? ####?????????? | | ??????????????????# #### ?????????? | | ?????????????###### ## ????????? | | ?????????????" " ?????????? | | ?????????????# "##????????????????? | +----------------------------------------------------+ Best States ------------- Heat Dissipation 25 Energy Generation 15 Energy Capacity 250 Matter Stores 300 Matter Capacity 300 Sight Range 16 Terrain Scan Density 10 Armor Coverage 100 Evasion (%) 40 Targeting Accuracy 5 Recoil Reduction 2 Item Schematics ----------------- None Robot Schematics ------------------ None Fabricated ------------ Nothing Repaired ---------- Nothing Studied --------- None Alien Tech Used ----------------- None Achievements -------------- None Challenges ------------ None Game ------ Seed JammingTechDrivehammer Manual? 0 Play Time 00:12:39 Cumulative 359.1 hours Start 2026.09.09 @ 17:32:59 End 2026.09.09 @ 17:44:06 Sessions 1 Manual Loads 0 Difficulty Rogue Special Mode None Game No. 337 Rogue 283 Adventurer 54 Explorer 0 Win Type - Total 18 Types 12/1/1/1/1/0/0/1/0/1 Lore% 81 Gallery% 69 Achievement% 66 Wizard Run 0 Options --------- Layout 1 ASCII 0 Keyboard 0 Movement Mouse Keybinds 1 Fullscreen 2 Font 32/Tamsyn Map View 50x35 Zoom Use 0% Tactical HUD 1 Map Filters NONE Filters NONE Steam 1 RUN: effc7f75-4fd7-4fe8-88f8-2762742c24f2